[Event "3rd Memorial Warakomska 2019"]
[Site "Suwalki"]
[Date "2019.08.10"]
[Round "7.25"]
[White "Ashwath, R.."]
[Black "Kiolbasa, Oliwia"]
[Result "1/2-1/2"]
[ECO "D25"]
[WhiteElo "2365"]
[BlackElo "2239"]
[Annotator "NA"]
[PlyCount "80"]
[EventDate "2019.08.05"]
[EventType "swiss"]
[EventCountry "POL"]
[SourceTitle "playchess.com"]
[Source "ChessBase"]
[SourceQuality "1"]
[TimeControl "40/5400+30:1800+30"]

1. d4 {[%emt 0:00:06]} d5 {[%emt 0:00:00]} 2. c4 {[%emt 0:00:38]} dxc4 {[%emt 0:00:00]} 3. Nf3 {[%emt 0:00:22]} Nf6 {[%emt 0:00:09]} 4. e3 {[%emt 0:00:06]} Bg4 {[%emt 0:00:13]} 5. Bxc4 {[%emt 0:00:37]} e6 {[%emt 0:00:14]} 6. Nc3 {[%emt 0:01:21]} a6 {[%emt 0:01:17]} 7. h3 {[%emt 0:02:02]} Bh5 {[%emt 0:00:20]} 8. g4 {[%emt 0:02:06]} Bg6 {[%emt 0:00:10]} 9. Ne5 {[%emt 0:00:22]} Nbd7 {[%emt 0:00:54]} 10. Nxg6 {[%emt 0:06:08]} hxg6 {[%emt 0:00:12]} 11. Bf1 {[%emt 0:01:44]} c6 {[%emt 0:00:53]} 12. Bg2 {[%emt 0:00:48]} Qc7 {[%emt 0:00:24]} 13. Bd2 {[%emt 0:03:48]} Nb6 {[%emt 0:09:32]} 14. Qb3 {[%emt 0:08:35]} O-O-O {[%emt 0:08:50]} 15. Ne2 {[%emt 0:13:19]} Nbd7 {[%emt 0:05:45]} 16. Rc1 {[%emt 0:01:18]} Qb6 {[%emt 0:05:20]} 17. Qa4 {[%emt 0:14:58]} Qb5 {[%emt 0:03:00]} 18. Qc2 {[%emt 0:01:10]} Nd5 {[%emt 0:03:05]} 19. a3 {[%emt 0:03:09]} f5 {[%emt 0:03:26]} 20. a4 {[%emt 0:09:00]} Qb6 {[%emt 0:00:33]} 21. Bxd5 {[%emt 0:00:53]} exd5 {[%emt 0:00:11]} 22. Nf4 {[%emt 0:00:09]} Nf6 {[%emt 0:03:25]} 23. Nxg6 {[%emt 0:00:43]} Rg8 {[%emt 0:00:54]} 24. Qxf5+ {[%emt 0:04:48]} Kb8 {[%emt 0:01:04]} 25. f3 {[%emt 0:00:33]} Bb4 {[%emt 0:02:06]} 26. Qc2 {[%emt 0:03:33]} Rge8 {[%emt 0:01:27]} 27. O-O {[%emt 0:00:30]} Bxd2 {[%emt 0:01:54]} 28. Qxd2 {[%emt 0:00:03]} Qb3 {[%emt 0:00:13]} 29. Ne5 {[%emt 0:06:56]} Qxa4 {[%emt 0:00:36]} 30. Rc5 {[%emt 0:04:14]} Nd7 {[%emt 0:02:11]} 31. Nxd7+ {[%emt 0:00:22]} Rxd7 {[%emt 0:00:09]} 32. Qc3 {[%emt 0:00:18]} Re6 {[%emt 0:02:21]} 33. Ra5 {[%emt 0:07:38]} Qc4 {[%emt 0:00:11]} 34. Qxc4 {[%emt 0:00:08]} dxc4 {[%emt 0:00:07]} 35. Kf2 {[%emt 0:00:40]} Rd5 {[%emt 0:00:41]} 36. Ra2 {[%emt 0:01:30]} c5 {[%emt 0:01:48]} 37. dxc5 {[%emt 0:00:49]} Rd2+ {[%emt 0:01:13]} 38. Kg3 {[%emt 0:00:25]} Rxe3 {[%emt 0:06:37]} 39. Ra4 {[%emt 0:00:41]} c3 {[%emt 0:05:20]} 40. bxc3 {[%emt 0:00:00]} Rxc3 {[%emt 0:00:00]} 1/2-1/2

[Event "3rd Memorial Warakomska 2019"]
[Site "Suwalki"]
[Date "2019.08.10"]
[Round "7.26"]
[White "Gurbanov, Andrei"]
[Black "Sanz Wawer, Daniel"]
[Result "1/2-1/2"]
[ECO "A45"]
[WhiteElo "2305"]
[BlackElo "2154"]
[Annotator "NA"]
[PlyCount "53"]
[EventDate "2019.08.05"]
[EventType "swiss"]
[EventCountry "POL"]
[SourceTitle "playchess.com"]
[Source "ChessBase"]
[SourceQuality "1"]
[TimeControl "40/5400+30:1800+30"]

1. d4 {[%emt 0:00:00]} Nf6 {[%emt 0:00:00]} 2. g3 {[%emt 0:00:00]} e6 {[%emt 0:01:19]} 3. Bg2 {[%emt 0:00:13]} c5 {[%emt 0:01:29]} 4. Nf3 {[%emt 0:00:12]} Nc6 {[%emt 0:01:35]} 5. O-O {[%emt 0:00:32]} Be7 {[%emt 0:02:45]} 6. dxc5 {[%emt 0:02:12]} Bxc5 {[%emt 0:00:20]} 7. c4 {[%emt 0:00:06]} d5 {[%emt 0:05:20]} 8. cxd5 {[%emt 0:05:12]} Nxd5 {[%emt 0:01:38]} 9. a3 {[%emt 0:00:12]} O-O {[%emt 0:06:31]} 10. b4 {[%emt 0:02:00]} Be7 {[%emt 0:02:20]} 11. e4 {[%emt 0:01:32]} Nb6 {[%emt 0:01:44]} 12. Qe2 {[%emt 0:02:26]} e5 {[%emt 0:07:59]} 13. Rd1 {[%emt 0:07:22]} Qc7 {[%emt 0:00:52]} 14. Nc3 {[%emt 0:11:03]} Nd4 {[%emt 0:09:58]} 15. Nxd4 {[%emt 0:00:24]} Qxc3 {[%emt 0:00:59]} 16. Bb2 {[%emt 0:00:18]} Qc4 {[%emt 0:02:22]} 17. Rac1 {[%emt 0:00:09]} Qxe2 {[%emt 0:00:51]} 18. Nxe2 {[%emt 0:00:06]} f6 {[%emt 0:02:42]} 19. Nc3 {[%emt 0:00:09]} Bg4 {[%emt 0:02:26]} 20. f3 {[%emt 0:00:15]} Bd7 {[%emt 0:03:01]} 21. Bf1 {[%emt 0:05:41]} Rac8 {[%emt 0:03:16]} 22. Nb5 {[%emt 0:03:37]} a6 {[%emt 0:01:41]} 23. Nd6 {[%emt 0:01:20]} Rxc1 {[%emt 0:02:40]} 24. Bxc1 {[%emt 0:00:04]} Ba4 {[%emt 0:02:44]} 25. Rd3 {[%emt 0:00:44]} Bxd6 {[%emt 0:04:00]} 26. Rxd6 {[%emt 0:00:07]} Rc8 {[%emt 0:01:46]} 27. Bb2 {[%emt 0:10:02]} 1/2-1/2

[Event "3rd Memorial Warakomska 2019"]
[Site "Suwalki"]
[Date "2019.08.10"]
[Round "7.27"]
[White "Jaroch, Karol"]
[Black "Koziol, Kamil"]
[Result "0-1"]
[ECO "A20"]
[WhiteElo "2221"]
[BlackElo "2307"]
[Annotator "NA"]
[PlyCount "78"]
[EventDate "2019.08.05"]
[EventType "swiss"]
[EventCountry "POL"]
[SourceTitle "playchess.com"]
[Source "ChessBase"]
[SourceQuality "1"]
[TimeControl "40/5400+30:1800+30"]

1. c4 {[%emt 0:00:00]} e5 {[%emt 0:08:25]} 2. g3 {[%emt 0:00:57]} d6 {[%emt 0:00:56]} 3. Bg2 {[%emt 0:00:06]} f5 {[%emt 0:00:42]} 4. Nf3 {[%emt 0:06:34]} Nf6 {[%emt 0:01:36]} 5. Nc3 {[%emt 0:00:14]} Be7 {[%emt 0:00:49]} 6. O-O {[%emt 0:00:23]} O-O {[%emt 0:00:42]} 7. c5 {[%emt 0:10:48]} Kh8 {[%emt 0:04:58]} 8. d4 {[%emt 0:10:41]} e4 {[%emt 0:04:11]} 9. cxd6 {[%emt 0:05:49]} cxd6 {[%emt 0:05:29]} 10. Ne1 {[%emt 0:00:26]} d5 {[%emt 0:03:31]} 11. Bg5 {[%emt 0:05:39]} Be6 {[%emt 0:05:37]} 12. Nc2 {[%emt 0:02:16]} Nc6 {[%emt 0:01:51]} 13. Qd2 {[%emt 0:02:00]} Qe8 {[%emt 0:06:43]} 14. f4 {[%emt 0:08:58]} Qh5 {[%emt 0:04:35]} 15. e3 {[%emt 0:01:27]} h6 {[%emt 0:07:20]} 16. Bxf6 {[%emt 0:00:18]} Rxf6 {[%emt 0:00:21]} 17. Rf2 {[%emt 0:08:40]} g5 {[%emt 0:02:56]} 18. Raf1 {[%emt 0:05:52]} Kg7 {[%emt 0:00:30]} 19. a3 {[%emt 0:01:01]} Qf7 {[%emt 0:02:50]} 20. Qe2 {[%emt 0:11:54]} g4 {[%emt 0:03:03]} 21. Qb5 {[%emt 0:00:51]} Rb8 {[%emt 0:08:48]} 22. b4 {[%emt 0:03:04]} h5 {[%emt 0:01:09]} 23. Na1 {[%emt 0:01:31]} h4 {[%emt 0:01:25]} 24. Rc2 {[%emt 0:00:22]} h3 {[%emt 0:00:55]} 25. Bh1 {[%emt 0:01:14]} a6 {[%emt 0:00:46]} 26. Qe2 {[%emt 0:00:55]} Bd7 {[%emt 0:01:13]} 27. Rcc1 {[%emt 0:01:30]} Na7 {[%emt 0:02:36]} 28. Qa2 {[%emt 0:00:34]} Rd6 {[%emt 0:03:31]} 29. Nb3 {[%emt 0:00:15]} b6 {[%emt 0:01:02]} 30. Rf2 {[%emt 0:01:13]} Rc8 {[%emt 0:00:51]} 31. Rfc2 {[%emt 0:00:11]} Rdc6 {[%emt 0:03:18]} 32. Na1 {[%emt 0:00:06]} Nb5 {[%emt 0:02:07]} 33. Nxb5 {[%emt 0:00:57]} Rxc2 {[%emt 0:00:12]} 34. Rxc2 {[%emt 0:00:03]} Rxc2 {[%emt 0:00:57]} 35. Qxc2 {[%emt 0:00:04]} Bxb5 {[%emt 0:00:18]} 36. Qc8 {[%emt 0:01:11]} Qf6 {[%emt 0:03:56]} 37. Qb7 {[%emt 0:00:14]} Qd6 {[%emt 0:01:20]} 38. Nb3 {[%emt 0:00:09]} Ba4 {[%emt 0:01:36]} 39. Nd2 {[%emt 0:00:12]} a5 {[%emt 0:00:29]} 0-1

[Event "3rd Memorial Warakomska 2019"]
[Site "Suwalki"]
[Date "2019.08.10"]
[Round "7.28"]
[White "Budrewicz, Krzysztof"]
[Black "Klimkowski, Jan"]
[Result "1-0"]
[ECO "E81"]
[WhiteElo "2188"]
[BlackElo "1985"]
[Annotator "NA"]
[PlyCount "75"]
[EventDate "2019.08.05"]
[EventType "swiss"]
[EventCountry "POL"]
[SourceTitle "playchess.com"]
[Source "ChessBase"]
[SourceQuality "1"]
[TimeControl "40/5400+30:1800+30"]

1. d4 Nf6 2. c4 g6 3. Nc3 Bg7 4. e4 d6 5. f3 O-O 6. Be3 Nbd7 7. Nge2 a6 8. Qd2 c5 9. d5 Qc7 10. Nf4 Ne5 11. a4 Qa5 12. h4 h5 13. Be2 Qb4 14. Nd1 a5 15. O-O Bd7 16. Qc2 Ne8 17. Bd2 Qb6 18. Ne3 Nc7 19. g4 Bh6 20. g5 Bg7 21. Nfg2 Na6 22. f4 Ng4 23. Nxg4 hxg4 24. Bc3 f5 25. gxf6 Bxf6 26. e5 Bf5 27. Qd1 Bg7 28. Bxg4 e6 29. Bxf5 exf5 30. e6 Qc7 31. Rf3 Qe7 32. Rg3 Kh7 33. h5 Bxc3 34. hxg6+ Kg7 35. bxc3 Qf6 36. Rb1 Rab8 37. Rb6 Rfd8 38. Qb1 1-0

[Event "3rd Memorial Warakomska 2019"]
[Site "Suwalki"]
[Date "2019.08.10"]
[Round "7.29"]
[White "Reza, Wojciech"]
[Black "Zaika, Daniil"]
[Result "1-0"]
[ECO "D11"]
[WhiteElo "2261"]
[BlackElo "2216"]
[Annotator "NA"]
[PlyCount "101"]
[EventDate "2019.08.05"]
[EventType "swiss"]
[EventCountry "POL"]
[SourceTitle "playchess.com"]
[Source "ChessBase"]
[SourceQuality "1"]
[TimeControl "40/5400+30:1800+30"]

1. d4 {[%emt 0:00:58]} d5 {[%emt 0:00:00]} 2. c4 {[%emt 0:00:22]} c6 {[%emt 0:00:03]} 3. Nf3 {[%emt 0:00:51]} Nf6 {[%emt 0:00:22]} 4. Qc2 {[%emt 0:02:36]} dxc4 {[%emt 0:02:01]} 5. Qxc4 {[%emt 0:00:54]} Bg4 {[%emt 0:00:14]} 6. e3 {[%emt 0:10:54]} Nbd7 {[%emt 0:11:43]} 7. Be2 {[%emt 0:01:30]} Bxf3 {[%emt 0:00:21]} 8. Bxf3 {[%emt 0:00:46]} e5 {[%emt 0:00:12]} 9. O-O {[%emt 0:07:08]} Bd6 {[%emt 0:10:55]} 10. Nc3 {[%emt 0:04:09]} O-O {[%emt 0:00:31]} 11. g3 {[%emt 0:25:36]} Qe7 {[%emt 0:01:55]} 12. Qb3 {[%emt 0:03:30]} Nb6 {[%emt 0:08:20]} 13. dxe5 Bxe5 {[%emt 0:01:06]} 14. Bd2 {[%emt 0:02:05]} Rfd8 {[%emt 0:11:24]} 15. Rfd1 {[%emt 0:00:49]} Rd7 {[%emt 0:04:13]} 16. Be1 {[%emt 0:04:28]} Rad8 {[%emt 0:02:38]} 17. Rxd7 {[%emt 0:00:47]} Rxd7 {[%emt 0:00:40]} 18. a4 {[%emt 0:08:02]} Nbd5 {[%emt 0:01:07]} 19. Nxd5 {[%emt 0:03:05]} Nxd5 {[%emt 0:01:29]} 20. Bg4 {[%emt 0:03:08]} Rd8 {[%emt 0:00:31]} 21. Rd1 {[%emt 0:00:27]} Nf6 {[%emt 0:06:35]} 22. Qxb7 {[%emt 0:00:51]} Bc7 {[%emt 0:11:16]} 23. Rxd8+ {[%emt 0:01:11]} Bxd8 {[%emt 0:00:08]} 24. Qxe7 {[%emt 0:03:31]} Bxe7 {[%emt 0:00:04]} 25. Bf3 {[%emt 0:00:07]} c5 {[%emt 0:00:02]} 26. Kf1 {[%emt 0:01:46]} Nd7 {[%emt 0:00:05]} 27. b3 {[%emt 0:00:48]} Kf8 {[%emt 0:01:04]} 28. Ke2 {[%emt 0:00:18]} Bd6 {[%emt 0:00:02]} 29. Bc6 {[%emt 0:00:24]} Ne5 {[%emt 0:00:10]} 30. Bd5 {[%emt 0:00:12]} Ke7 {[%emt 0:01:59]} 31. f4 {[%emt 0:00:26]} Ng4 {[%emt 0:00:14]} 32. h3 {[%emt 0:00:27]} Nf6 {[%emt 0:00:01]} 33. Bc6 {[%emt 0:00:08]} Nd7 {[%emt 0:00:15]} 34. e4 {[%emt 0:06:26]} f6 {[%emt 0:00:36]} 35. Bxd7 {[%emt 0:03:04]} Kxd7 {[%emt 0:00:04]} 36. Bd2 {[%emt 0:04:05]} g6 {[%emt 0:00:06]} 37. Kd3 {[%emt 0:00:49]} Kc6 {[%emt 0:01:08]} 38. Kc4 {[%emt 0:01:12]} a6 {[%emt 0:00:03]} 39. Be3 {[%emt 0:00:55]} h5 {[%emt 0:00:33]} 40. g4 {[%emt 0:00:00]} hxg4 {[%emt 0:00:00]} 41. hxg4 {[%emt 0:00:33]} Be7 {[%emt 0:00:10]} 42. Bc1 {[%emt 0:03:46]} Bd6 {[%emt 0:00:21]} 43. Bd2 {[%emt 0:00:13]} Bc7 {[%emt 0:00:26]} 44. f5 {[%emt 0:11:59]} gxf5 {[%emt 0:00:45]} 45. exf5 {[%emt 0:00:12]} Bd8 {[%emt 0:02:02]} 46. Bf4 {[%emt 0:00:22]} Be7 {[%emt 0:00:05]} 47. Be3 {[%emt 0:00:06]} Bf8 {[%emt 0:00:38]} 48. g5 {[%emt 0:00:49]} fxg5 {[%emt 0:00:06]} 49. Bxg5 {[%emt 0:00:05]} Bd6 {[%emt 0:00:07]} 50. Bh6 {[%emt 0:01:09]} Be5 {[%emt 0:00:56]} 51. Bf8 {[%emt 0:00:07] Kd5+} 1-0

[Event "3rd Memorial Warakomska 2019"]
[Site "Suwalki"]
[Date "2019.08.10"]
[Round "7.30"]
[White "Luba, Lukasz"]
[Black "Wiewiora, Eneasz"]
[Result "1-0"]
[ECO "A45"]
[WhiteElo "2177"]
[BlackElo "2344"]
[Annotator "NA"]
[PlyCount "105"]
[EventDate "2019.08.05"]
[EventType "swiss"]
[EventCountry "POL"]
[SourceTitle "playchess.com"]
[Source "ChessBase"]
[SourceQuality "1"]
[TimeControl "40/5400+30:1800+30"]

1. d4 {[%emt 0:00:21]} Nf6 {[%emt 0:00:00]} 2. Nd2 {[%emt 0:00:13]} g6 {[%emt 0:01:06]} 3. e4 {[%emt 0:00:32]} d6 {[%emt 0:00:06]} 4. Be2 {[%emt 0:01:26]} Bg7 {[%emt 0:00:06]} 5. h4 {[%emt 0:00:07]} h5 {[%emt 0:00:14]} 6. Ngf3 {[%emt 0:00:16]} O-O {[%emt 0:00:37]} 7. Ng5 {[%emt 0:00:16]} e5 {[%emt 0:04:18]} 8. d5 {[%emt 0:05:43]} c6 {[%emt 0:04:40]} 9. c4 {[%emt 0:00:08]} Na6 {[%emt 0:00:31]} 10. Nf1 {[%emt 0:00:13]} cxd5 {[%emt 0:04:12]} 11. cxd5 {[%emt 0:00:18]} Nc5 {[%emt 0:00:05]} 12. Ng3 {[%emt 0:00:25]} Bd7 {[%emt 0:05:05]} 13. b4 {[%emt 0:19:18]} Na4 {[%emt 0:06:18]} 14. Qb3 {[%emt 0:01:09]} Rc8 {[%emt 0:01:12]} 15. Bd2 {[%emt 0:00:03]} Qe7 {[%emt 0:14:27]} 16. O-O {[%emt 0:11:52]} Rc7 {[%emt 0:01:16]} 17. Rfc1 {[%emt 0:12:34]} Rfc8 {[%emt 0:00:40]} 18. Rxc7 {[%emt 0:00:58]} Rxc7 {[%emt 0:00:05]} 19. Rc1 {[%emt 0:00:09]} Qd8 {[%emt 0:01:18]} 20. Ne6 {[%emt 0:07:45]} Rxc1+ {[%emt 0:02:24]} 21. Bxc1 {[%emt 0:02:46]} Qc8 {[%emt 0:00:20]} 22. Bg5 {[%emt 0:00:33]} fxe6 {[%emt 0:00:51]} 23. dxe6 {[%emt 0:00:08]} Be8 {[%emt 0:00:37]} 24. Bxf6 {[%emt 0:06:05]} Bxf6 {[%emt 0:00:06]} 25. Bxh5 {[%emt 0:00:04]} gxh5 {[%emt 0:03:45]} 26. Nf5 {[%emt 0:00:20]} Qc3 {[%emt 0:18:40]} 27. Qd5 {[%emt 0:08:49]} Qc6 {[%emt 0:02:17]} 28. Qd3 {[%emt 0:02:16]} Bg6 {[%emt 0:02:23]} 29. e7 {[%emt 0:07:55]} Bxf5 {[%emt 0:01:39]} 30. Qd5+ {[%emt 0:00:11]} Qxd5 {[%emt 0:03:16]} 31. e8=Q+ {[%emt 0:00:14]} Kg7 {[%emt 0:00:04]} 32. exd5 {[%emt 0:00:07]} Nb6 {[%emt 0:03:53]} 33. Qxh5 {[%emt 0:02:04]} Bd7 {[%emt 0:01:04]} 34. g4 {[%emt 0:00:46]} Nxd5 {[%emt 0:00:35]} 35. g5 {[%emt 0:00:10]} Be7 {[%emt 0:00:02]} 36. Qh6+ {[%emt 0:00:04]} Kg8 {[%emt 0:00:45]} 37. Qg6+ {[%emt 0:00:08]} Kf8 {[%emt 0:00:16]} 38. Qh7 {[%emt 0:02:42]} Be6 {[%emt 0:01:37]} 39. Qh6+ {[%emt 0:00:29]} Kf7 {[%emt 0:00:01]} 40. g6+ {[%emt 0:00:00]} Ke8 {[%emt 0:00:00]} 41. g7 {[%emt 0:02:44]} Nf6 {[%emt 0:00:12]} 42. Qg6+ {[%emt 0:00:08]} Kd7 {[%emt 0:00:30]} 43. h5 {[%emt 0:00:15]} d5 {[%emt 0:00:24]} 44. h6 {[%emt 0:00:10]} Bg8 {[%emt 0:00:03]} 45. Qf5+ {[%emt 0:00:30]} Kd6 {[%emt 0:00:05]} 46. Qc8 {[%emt 0:00:11]} Bf7 {[%emt 0:06:13]} 47. Qxb7 {[%emt 0:00:38]} d4 {[%emt 0:00:13]} 48. Qxa7 {[%emt 0:00:15]} Ke6 {[%emt 0:03:12]} 49. Qa6+ {[%emt 0:02:54]} Bd6 {[%emt 0:00:13]} 50. Qd3 {[%emt 0:01:22]} Bg8 {[%emt 0:00:48]} 51. h7 {[%emt 0:00:43]} Bxh7 {[%emt 0:01:07]} 52. Qxh7 {[%emt 0:00:07]} Nxh7 {[%emt 0:00:08]} 53. g8=Q+ {[%emt 0:00:10]} 1-0

[Event "3rd Memorial Warakomska 2019"]
[Site "Suwalki"]
[Date "2019.08.10"]
[Round "7.31"]
[White "Paszewski, Mateusz"]
[Black "Antolak, Julia"]
[Result "1/2-1/2"]
[ECO "A01"]
[WhiteElo "2324"]
[BlackElo "2258"]
[Annotator "NA"]
[PlyCount "59"]
[EventDate "2019.08.05"]
[EventType "swiss"]
[EventCountry "POL"]
[SourceTitle "playchess.com"]
[Source "ChessBase"]
[SourceQuality "1"]
[TimeControl "40/5400+30:1800+30"]

1. b3 {[%emt 0:00:00]} Nf6 {[%emt 0:02:15]} 2. Bb2 {[%emt 0:00:00]} g6 {[%emt 0:00:47]} 3. Nf3 {[%emt 0:00:11]} Bg7 {[%emt 0:00:45]} 4. c4 {[%emt 0:00:32]} c5 {[%emt 0:00:36]} 5. g3 {[%emt 0:00:48]} Nc6 {[%emt 0:02:33]} 6. Bg2 {[%emt 0:00:23]} O-O {[%emt 0:01:50]} 7. O-O {[%emt 0:02:00]} d6 {[%emt 0:02:17]} 8. d4 {[%emt 0:03:40]} cxd4 {[%emt 0:02:09]} 9. Nxd4 {[%emt 0:00:02]} Bd7 {[%emt 0:00:53]} 10. Nc3 {[%emt 0:13:06]} Nxd4 {[%emt 0:12:20]} 11. Qxd4 {[%emt 0:00:03]} Bc6 {[%emt 0:00:15]} 12. Qd2 {[%emt 0:03:56]} Nd7 {[%emt 0:08:02]} 13. h4 {[%emt 0:06:37]} h5 {[%emt 0:09:57]} 14. Rfe1 {[%emt 0:09:17]} a5 {[%emt 0:03:04]} 15. Rad1 {[%emt 0:08:46]} Nc5 {[%emt 0:04:48]} 16. e4 {[%emt 0:03:20]} Rb8 {[%emt 0:13:12]} 17. Kh1 {[%emt 0:06:11]} Qd7 {[%emt 0:03:28]} 18. Kh2 {[%emt 0:06:12]} b5 {[%emt 0:04:45]} 19. cxb5 {[%emt 0:07:04]} Bxb5 {[%emt 0:00:11]} 20. Nxb5 {[%emt 0:00:50]} Bxb2 {[%emt 0:05:26]} 21. Bf1 {[%emt 0:09:36]} Bg7 {[%emt 0:07:09]} 22. Qxa5 {[%emt 0:00:42]} Ra8 {[%emt 0:04:28]} 23. Qb4 {[%emt 0:03:18]} Qg4 {[%emt 0:03:23]} 24. Rd2 {[%emt 0:04:11]} Be5 {[%emt 0:00:21]} 25. Kg1 {[%emt 0:04:26]} Ne6 {[%emt 0:03:16]} 26. Be2 {[%emt 0:01:20]} Qh3 {[%emt 0:00:05]} 27. Bf1 {[%emt 0:00:05]} Qg4 {[%emt 0:00:03]} 28. Be2 {[%emt 0:02:25]} Qh3 {[%emt 0:00:02]} 29. Bf1 {[%emt 0:01:08]} Qg4 {[%emt 0:00:02]} 30. Be2 {[%emt 0:03:00]} 1/2-1/2

[Event "3rd Memorial Warakomska 2019"]
[Site "Suwalki"]
[Date "2019.08.10"]
[Round "7.32"]
[White "Fiedorek, Michal"]
[Black "Bukojemski, Adam"]
[Result "1/2-1/2"]
[ECO "C64"]
[WhiteElo "2241"]
[BlackElo "2225"]
[Annotator "NA"]
[PlyCount "94"]
[EventDate "2019.08.05"]
[EventType "swiss"]
[EventCountry "POL"]
[SourceTitle "playchess.com"]
[Source "ChessBase"]
[SourceQuality "1"]
[TimeControl "40/5400+30:1800+30"]

1. e4 {[%emt 0:00:00]} e5 {[%emt 0:00:09]} 2. Nf3 {[%emt 0:00:00]} Nc6 {[%emt 0:00:05]} 3. Bb5 {[%emt 0:00:00]} Bc5 {[%emt 0:00:09]} 4. c3 {[%emt 0:04:07]} f5 {[%emt 0:00:24]} 5. Qe2 {[%emt 0:21:29]} fxe4 {[%emt 0:09:45]} 6. Bxc6 {[%emt 0:01:47]} dxc6 {[%emt 0:10:00]} 7. Qxe4 {[%emt 0:00:53]} Nf6 {[%emt 0:00:41]} 8. Qxe5+ {[%emt 0:02:08]} Be7 {[%emt 0:00:08]} 9. O-O {[%emt 0:05:21]} O-O {[%emt 0:00:05]} 10. d4 {[%emt 0:03:16]} Bg4 {[%emt 0:07:39]} 11. Nbd2 {[%emt 0:17:45]} Bd6 {[%emt 0:20:27]} 12. Qe3 {[%emt 0:05:41]} Bh5 {[%emt 0:09:03]} 13. Nc4 {[%emt 0:08:40]} Nd5 {[%emt 0:03:25]} 14. Qe6+ {[%emt 0:02:11]} Bf7 {[%emt 0:00:08]} 15. Qe2 {[%emt 0:02:19]} Bh5 {[%emt 0:02:23]} 16. Qe6+ {[%emt 0:07:14]} Bf7 {[%emt 0:00:09]} 17. Qh3 {[%emt 0:09:45]} Nxc3 {[%emt 0:02:11]} 18. Ng5 {[%emt 0:01:21]} Ne2+ {[%emt 0:03:06]} 19. Kh1 {[%emt 0:00:08]} h6 {[%emt 0:00:46]} 20. Nxf7 {[%emt 0:01:01]} Rxf7 {[%emt 0:00:43]} 21. Bxh6 {[%emt 0:01:38]} gxh6 {[%emt 0:02:06]} 22. Qg4+ {[%emt 0:00:20]} Qg5 {[%emt 0:01:41]} 23. Qxe2 {[%emt 0:00:12]} Kh8 {[%emt 0:00:49]} 24. Nxd6 {[%emt 0:01:32]} cxd6 {[%emt 0:00:01]} 25. Qe3 {[%emt 0:00:48]} Re7 {[%emt 0:01:53]} 26. Qf3 {[%emt 0:01:05]} Rae8 {[%emt 0:00:14]} 27. Rad1 {[%emt 0:01:16]} d5 {[%emt 0:00:09]} 28. Qb3 {[%emt 0:01:02]} Qg4 {[%emt 0:01:38]} 29. h3 {[%emt 0:00:48]} Qf4 {[%emt 0:00:01]} 30. a4 {[%emt 0:00:36]} Rg7 {[%emt 0:00:52]} 31. Qc2 {[%emt 0:00:30]} Reg8 {[%emt 0:00:27]} 32. f3 {[%emt 0:00:28]} Rg3 {[%emt 0:00:26]} 33. Qe2 {[%emt 0:00:29]} Qh4 {[%emt 0:06:41]} 34. Rf2 {[%emt 0:00:18]} R8g7 {[%emt 0:00:25]} 35. b3 {[%emt 0:00:44]} Re7 {[%emt 0:00:11]} 36. Qd2 {[%emt 0:00:27]} Rg6 {[%emt 0:11:52]} 37. Re2 {[%emt 0:00:08]} Rge6 {[%emt 0:00:01]} 38. Rxe6 {[%emt 0:00:16]} Rxe6 {[%emt 0:00:01]} 39. Kh2 {[%emt 0:01:00]} Qe7 {[%emt 0:00:31]} 40. a5 {[%emt 0:00:00]} a6 {[%emt 0:00:00]} 41. Qf4 {[%emt 0:08:24]} Kg7 {[%emt 0:08:15]} 42. Rd3 {[%emt 0:08:50]} Re1 {[%emt 0:00:34]} 43. Qg4+ {[%emt 0:01:30]} Qg5 {[%emt 0:01:13]} 44. Qd7+ {[%emt 0:04:49]} Re7 {[%emt 0:02:58]} 45. Qd6 {[%emt 0:02:22]} Re2 {[%emt 0:00:14]} 46. Qc7+ {[%emt 0:02:33]} Kg6 {[%emt 0:02:58]} 47. Qd6+ {[%emt 0:01:07]} Kf7 1/2-1/2

[Event "3rd Memorial Warakomska 2019"]
[Site "Suwalki"]
[Date "2019.08.10"]
[Round "7.33"]
[White "Zakrzewski, Marek"]
[Black "Sowul, Bartosz"]
[Result "1-0"]
[ECO "B38"]
[WhiteElo "2311"]
[BlackElo "2210"]
[Annotator "NA"]
[PlyCount "97"]
[EventDate "2019.08.05"]
[EventType "swiss"]
[EventCountry "POL"]
[SourceTitle "playchess.com"]
[Source "ChessBase"]
[SourceQuality "1"]
[TimeControl "40/5400+30:1800+30"]

1. e4 {[%emt 0:05:51]} c5 {[%emt 0:00:00]} 2. Nf3 {[%emt 0:00:07]} g6 {[%emt 0:00:00]} 3. d4 {[%emt 0:00:07]} cxd4 {[%emt 0:00:00]} 4. Nxd4 {[%emt 0:00:07]} Nc6 {[%emt 0:00:06]} 5. c4 {[%emt 0:00:43]} Bg7 {[%emt 0:00:08]} 6. Be3 {[%emt 0:00:14]} Nf6 {[%emt 0:00:08]} 7. Nc3 {[%emt 0:00:16]} O-O {[%emt 0:00:09]} 8. Be2 {[%emt 0:00:27]} d6 {[%emt 0:00:12]} 9. f3 {[%emt 0:02:25]} Bd7 {[%emt 0:00:28]} 10. Nc2 {[%emt 0:04:04]} Rc8 {[%emt 0:00:50]} 11. Qd2 {[%emt 0:07:39]} Ne5 {[%emt 0:10:42]} 12. Na3 {[%emt 0:02:44]} a6 {[%emt 0:26:39]} 13. O-O {[%emt 0:05:04]} Re8 {[%emt 0:03:09]} 14. Nd5 {[%emt 0:23:14]} Be6 {[%emt 0:07:48]} 15. Rac1 {[%emt 0:05:56]} Ned7 {[%emt 0:06:28]} 16. Nc2 {[%emt 0:03:34]} Nc5 {[%emt 0:09:10]} 17. b4 {[%emt 0:02:42]} Na4 {[%emt 0:00:21]} 18. Nd4 {[%emt 0:00:36]} Bd7 {[%emt 0:01:46]} 19. Rfd1 {[%emt 0:05:55]} Nh5 {[%emt 0:04:37]} 20. Bg5 {[%emt 0:03:19]} Bc6 {[%emt 0:10:00]} 21. g4 {[%emt 0:07:11]} Bxd5 {[%emt 0:01:56]} 22. cxd5 {[%emt 0:00:12]} Rxc1 {[%emt 0:02:42]} 23. Rxc1 {[%emt 0:00:42]} Qb6 {[%emt 0:01:33]} 24. Be3 {[%emt 0:00:08]} Nf4 {[%emt 0:05:28]} 25. Bf1 {[%emt 0:00:08]} g5 {[%emt 0:07:33]} 26. Ne6 {[%emt 0:01:36]} fxe6 {[%emt 0:00:27]} 27. Bxb6 {[%emt 0:00:06]} Nxb6 {[%emt 0:00:06]} 28. Rc7 {[%emt 0:05:30]} exd5 {[%emt 0:00:30]} 29. exd5 {[%emt 0:02:03]} Nbxd5 {[%emt 0:00:34]} 30. Bc4 {[%emt 0:00:13]} e6 {[%emt 0:00:05]} 31. Rxb7 {[%emt 0:03:30]} Rc8 {[%emt 0:00:11]} 32. Bxd5 {[%emt 0:00:25]} exd5 {[%emt 0:00:06]} 33. Kf1 {[%emt 0:00:32]} Be5 {[%emt 0:02:02]} 34. a4 {[%emt 0:08:16]} Rc3 {[%emt 0:00:27]} 35. Qd1 {[%emt 0:01:03]} d4 {[%emt 0:00:29]} 36. b5 {[%emt 0:00:12]} axb5 {[%emt 0:00:27]} 37. axb5 {[%emt 0:00:40]} Nd5 {[%emt 0:00:41]} 38. Qa1 {[%emt 0:00:31]} Ne3+ {[%emt 0:00:24]} 39. Kg1 {[%emt 0:00:09]} Rc8 {[%emt 0:00:19]} 40. Qa2+ {[%emt 0:00:00]} d5 {[%emt 0:00:00]} 41. Qa1 {[%emt 0:16:46]} Bh8 {[%emt 0:10:17]} 42. Qb1 {[%emt 0:01:58]} Rc2 {[%emt 0:21:21]} 43. Rb8+ {[%emt 0:00:28]} Kf7 {[%emt 0:00:31]} 44. Rxh8 {[%emt 0:03:31]} d3 {[%emt 0:00:04]} 45. Qa1 {[%emt 0:00:06]} d2 {[%emt 0:00:37]} 46. Rxh7+ {[%emt 0:00:58]} Ke6 {[%emt 0:00:15]} 47. Rh6+ {[%emt 0:00:06]} Kf7 {[%emt 0:00:32]} 48. Qf6+ {[%emt 0:00:32]} Ke8 {[%emt 0:00:06]} 49. Rh8+ {[%emt 0:00:06]} 1-0